[Event "RLP-ch Rapid 2024"]
[Site "Landau"]
[Date "2024.05.04"]
[Round "5.8"]
[White "Louis, Volker"]
[Black "Yakovenko, Oleg"]
[Result "1-0"]
[ECO "E36"]
[WhiteElo "2022"]
[BlackElo "2281"]
[Annotator "NA RC"]
[PlyCount "65"]
[EventDate "2024.05.03"]
[EventType "swiss"]
[EventCountry "GER"]
[SourceTitle "playchess.com"]
[Source "ChessBase"]
[SourceQuality "1"]
[TimeControl "900+5"]

1. d4 {[%emt 0:00:10]} Nf6 {[%emt 0:00:02]} 2. c4 {[%emt 0:00:02]} e6 {[%emt 0:00:03]} 3. Nc3 {[%emt 0:00:05]} Bb4 {[%emt 0:00:05]} 4. Qc2 {[%emt 0:00:02]} O-O {[%emt 0:00:06]} 5. a3 {[%emt 0:00:12]} Bxc3+ {[%emt 0:00:02]} 6. Qxc3 {[%emt 0:00:01]} d5 {[%emt 0:00:02]} 7. Nf3 {[%emt 0:00:08]} dxc4 {[%emt 0:00:07]} 8. Qxc4 {[%emt 0:00:02]} b6 {[%emt 0:00:01]} 9. Bg5 {[%emt 0:00:07]} Ba6 {[%emt 0:00:03]} 10. Qa4 {[%emt 0:00:02]} Qd7 {[%emt 0:00:04]} 11. Qc2 {[%emt 0:00:24]} c5 {[%emt 0:00:12]} 12. Bxf6 {[%emt 0:00:13]} gxf6 {[%emt 0:00:02]} 13. dxc5 {[%emt 0:00:47]} Rc8 {[%emt 0:00:10]} 14. Rd1 {[%emt 0:00:07]} Qe7 {[%emt 0:01:07]} 15. e3 {[%emt 0:00:54]} Bb7 {[%emt 0:01:06]} 16. Qd2 {[%emt 0:03:14]} Rxc5 {[%emt 0:01:04]} 17. Bd3 {[%emt 0:01:22]} Nc6 {[%emt 0:01:03]} 18. O-O {[%emt 0:00:13]} Rd8 {[%emt 0:01:37]} 19. b4 {[%emt 0:01:48]} Rcd5 {[%emt 0:00:35]} 20. Qc2 {[%emt 0:00:07]} f5 {[%emt 0:00:40]} 21. Be2 {[%emt 0:00:51]} Qf6 {[%emt 0:04:13]} 22. b5 {[%emt 0:01:04]} Ne7 {[%emt 0:00:42]} 23. Qc7 {[%emt 0:00:57]} Rxd1 {[%emt 0:00:16]} 24. Bxd1 {[%emt 0:00:04]} Rxd1 {[%emt 0:00:41]} 25. Rxd1 {[%emt 0:00:01]} Bxf3 {[%emt 0:00:10]} 26. gxf3 {[%emt 0:00:06]} Kg7 {[%emt 0:00:31]} 27. Kh1 {[%emt 0:01:14]} Ng6 {[%emt 0:00:18]} 28. Qd8 {[%emt 0:00:09]} Ne7 {[%emt 0:00:34]} 29. Qd4 {[%emt 0:00:34]} e5 {[%emt 0:00:08]} 30. Qd6 {[%emt 0:00:01]} Ng8 {[%emt 0:01:03]} 31. Rd5 {[%emt 0:00:17]} Qh4 {[%emt 0:00:25]} 32. Qxe5+ {[%emt 0:00:05]} f6 {[%emt 0:00:12]} 33. Qg3+ {[%emt 0:00:07]} 1-0

[Event "RLP-ch Rapid 2024"]
[Site "Landau"]
[Date "2024.05.04"]
[Round "5.9"]
[White "Graf, Ann-Jennifer"]
[Black "Anissimova, Mariya"]
[Result "0-1"]
[ECO "C26"]
[WhiteElo "1827"]
[BlackElo "1850"]
[Annotator "NA RC"]
[PlyCount "86"]
[EventDate "2024.05.03"]
[EventType "swiss"]
[EventCountry "GER"]
[SourceTitle "playchess.com"]
[Source "ChessBase"]
[SourceQuality "1"]
[TimeControl "900+5"]

1. e4 {[%emt 0:00:01]} e5 {[%emt 0:00:01]} 2. Nc3 {[%emt 0:00:04]} Nf6 {[%emt 0:15:14]} 3. g3 Bc5 {[%emt 0:00:00]} 4. Bg2 {[%emt 0:00:09]} a6 {[%emt 0:00:00]} 5. Nge2 {[%emt 0:00:06]} Nc6 {[%emt 0:00:15]} 6. d3 {[%emt 0:00:15]} d6 {[%emt 0:00:00]} 7. O-O {[%emt 0:15:05]} Be6 {[%emt 0:00:00]} 8. Nd5 {[%emt 0:00:00]} Qd7 {[%emt 0:00:00]} 9. Bg5 {[%emt 0:00:00]} Ng4 {[%emt 0:00:00]} 10. h3 {[%emt 0:00:00]} h6 {[%emt 0:00:00]} 11. Bh4 {[%emt 0:00:00]} Nxf2 {[%emt 0:00:00]} 12. Rxf2 {[%emt 0:00:00]} Bxh3 {[%emt 0:00:00]} 13. Bxh3 {[%emt 0:00:00]} Qxh3 {[%emt 0:00:00]} 14. Qf1 {[%emt 0:00:00]} Bxf2+ {[%emt 0:00:00]} 15. Qxf2 {[%emt 0:00:00]} g5 {[%emt 0:00:00]} 16. Qf6 {[%emt 0:00:00]} Rf8 {[%emt 0:00:00]} 17. Nxc7+ {[%emt 0:00:00]} Kd7 {[%emt 0:00:00]} 18. Nxa8 {[%emt 0:00:00]} Rxa8 {[%emt 0:00:00]} 19. Qxf7+ {[%emt 0:00:00]} Ne7 {[%emt 0:00:00]} 20. Qh5 {[%emt 0:00:00]} gxh4 {[%emt 0:00:00]} 21. Qxh4 {[%emt 0:00:00]} Qe6 {[%emt 0:00:00]} 22. Nc3 {[%emt 0:00:00]} Rg8 {[%emt 0:00:00]} 23. Rf1 {[%emt 0:00:00]} Rg4 {[%emt 0:00:00]} 24. Qh3 {[%emt 0:00:00]} Qg6 {[%emt 0:00:00]} 25. Kh2 {[%emt 0:00:00]} Kc6 {[%emt 0:01:40]} 26. Rf2 {[%emt 0:00:00]} Rg5 {[%emt 0:00:05]} 27. Qg2 {[%emt 0:00:00]} b5 {[%emt 0:00:05]} 28. b4 {[%emt 0:00:00]} h5 {[%emt 0:00:00]} 29. Ne2 {[%emt 0:01:50]} h4 {[%emt 0:00:10]} 30. d4 {[%emt 0:00:00]} Rg4 {[%emt 0:00:00]} 31. d5+ {[%emt 0:00:00]} Kc7 {[%emt 0:00:00]} 32. Kg1 {[%emt 0:00:00]} hxg3 {[%emt 0:00:00]} 33. Rf3 {[%emt 0:00:00]} Qxe4 {[%emt 0:00:00]} 34. Rc3+ {[%emt 0:00:00]} Kd8 {[%emt 0:00:00]} 35. Qf1 {[%emt 0:00:00]} Nf5 {[%emt 0:00:00]} 36. a3 {[%emt 0:00:00]} g2 {[%emt 0:00:05]} 37. Qf2 {[%emt 0:00:00]} Rh4 {[%emt 0:00:10]} 38. Qb6+ {[%emt 0:00:00]} Ke8 {[%emt 0:00:05]} 39. Rc8+ {[%emt 0:00:10]} Kf7 {[%emt 0:00:03]} 40. Qc7+ {[%emt 0:00:07]} Ne7 {[%emt 0:00:02]} 41. Ng3 {[%emt 0:00:16]} Rh1+ {[%emt 0:00:02]} 42. Nxh1 {[%emt 0:00:03]} gxh1=Q+ {[%emt 0:00:04]} 43. Kf2 {[%emt 0:00:03]} Qhg2# {[%emt 0:00:02]} 0-1

[Event "RLP-ch Rapid 2024"]
[Site "Landau"]
[Date "2024.05.04"]
[Round "5.10"]
[White "Morio, Estelle"]
[Black "Mader, Lena"]
[Result "0-1"]
[ECO "E65"]
[WhiteElo "1814"]
[BlackElo "1902"]
[Annotator "NA RC"]
[PlyCount "146"]
[EventDate "2024.05.03"]
[EventType "swiss"]
[EventCountry "GER"]
[SourceTitle "playchess.com"]
[Source "ChessBase"]
[SourceQuality "1"]
[TimeControl "900+5"]

1. d4 {[%emt 0:00:02]} Nf6 {[%emt 0:00:02]} 2. Nf3 {[%emt 0:00:03]} g6 {[%emt 0:00:01]} 3. g3 {[%emt 0:00:13]} Bg7 {[%emt 0:00:12]} 4. Bg2 {[%emt 0:00:03]} O-O {[%emt 0:00:15]} 5. O-O {[%emt 0:00:08]} d6 {[%emt 0:00:41]} 6. c4 {[%emt 0:00:09]} c5 {[%emt 0:00:11]} 7. dxc5 {[%emt 0:01:57]} dxc5 {[%emt 0:00:05]} 8. Nc3 {[%emt 0:01:50]} Nc6 {[%emt 0:00:26]} 9. Qxd8 {[%emt 0:00:35]} Rxd8 {[%emt 0:00:01]} 10. Be3 {[%emt 0:00:16]} Be6 {[%emt 0:00:54]} 11. Bxc5 {[%emt 0:00:24]} Bxc4 {[%emt 0:00:12]} 12. Rfd1 {[%emt 0:01:35]} Bf8 {[%emt 0:01:20]} 13. Rd2 {[%emt 0:02:44]} Rxd2 {[%emt 0:01:00]} 14. Nxd2 {[%emt 0:00:01]} Be6 {[%emt 0:00:51]} 15. Nde4 {[%emt 0:00:56]} Nd7 {[%emt 0:01:29]} 16. Be3 {[%emt 0:00:12]} Rc8 {[%emt 0:01:02]} 17. Nc5 {[%emt 0:00:33]} Nxc5 {[%emt 0:00:28]} 18. Bxc5 {[%emt 0:00:01]} b6 {[%emt 0:00:01]} 19. Be3 {[%emt 0:00:11]} Bg7 {[%emt 0:00:17]} 20. a3 {[%emt 0:01:06]} Bb3 {[%emt 0:01:11]} 21. Rb1 {[%emt 0:00:40]} Bc4 {[%emt 0:00:51]} 22. Bd5 {[%emt 0:00:32]} Ne5 {[%emt 0:00:52]} 23. Bf4 {[%emt 0:01:00]} e6 {[%emt 0:00:50]} 24. Bg2 {[%emt 0:01:11]} h6 {[%emt 0:00:23]} 25. Kf1 {[%emt 0:00:19]} g5 {[%emt 0:00:05]} 26. Be3 {[%emt 0:00:07]} Ng4 {[%emt 0:00:06]} 27. h3 {[%emt 0:00:05]} Nxe3+ {[%emt 0:00:06]} 28. fxe3 {[%emt 0:00:01]} Be5 {[%emt 0:00:23]} 29. Kf2 {[%emt 0:00:08]} Bxc3 {[%emt 0:00:23]} 30. bxc3 {[%emt 0:00:01]} Rc5 {[%emt 0:00:05]} 31. g4 {[%emt 0:00:07]} Ra5 {[%emt 0:00:44]} 32. Ra1 {[%emt 0:00:07]} Kg7 {[%emt 0:00:08]} 33. Bc6 {[%emt 0:00:08]} Rc5 {[%emt 0:00:04]} 34. Be4 {[%emt 0:00:05]} f5 {[%emt 0:00:29]} 35. Bg2 {[%emt 0:00:10]} Kf6 {[%emt 0:00:09]} 36. Rd1 {[%emt 0:00:05]} Ra5 {[%emt 0:00:04]} 37. Ra1 {[%emt 0:00:01]} Ke5 {[%emt 0:00:08]} 38. Bf3 {[%emt 0:00:05]} Bd5 {[%emt 0:00:11]} 39. Ke1 {[%emt 0:00:12]} Kd6 {[%emt 0:00:19]} 40. Kd2 {[%emt 0:00:03]} Rc5 {[%emt 0:00:22]} 41. Rb1 {[%emt 0:00:06]} Kc7 {[%emt 0:00:10]} 42. Ra1 {[%emt 0:00:05]} Bxf3 {[%emt 0:00:20]} 43. exf3 {[%emt 0:00:01]} Rd5+ {[%emt 0:00:00]} 44. Ke2 {[%emt 0:00:08]} Kc6 {[%emt 0:00:01]} 45. Ra2 {[%emt 0:00:05]} Kc5 {[%emt 0:00:01]} 46. e4 {[%emt 0:00:09]} fxe4 {[%emt 0:00:28]} 47. fxe4 {[%emt 0:00:02]} Rd6 {[%emt 0:00:05]} 48. Ra1 {[%emt 0:00:05]} Kc4 {[%emt 0:00:04]} 49. Rc1 {[%emt 0:00:09]} Rd3 {[%emt 0:00:05]} 50. Ra1 {[%emt 0:00:04]} Rxh3 {[%emt 0:00:02]} 51. Rd1 {[%emt 0:00:09]} Rh2+ {[%emt 0:00:07]} 52. Ke3 {[%emt 0:00:01]} Rh3+ {[%emt 0:00:04]} 53. Ke2 {[%emt 0:00:01]} Rg3 {[%emt 0:00:07]} 54. Rd6 {[%emt 0:00:02]} Rxg4 {[%emt 0:00:02]} 55. Rxe6 {[%emt 0:00:00]} Kxc3 {[%emt 0:00:01]} 56. e5 {[%emt 0:00:09]} h5 {[%emt 0:00:05]} 57. Re8 {[%emt 0:00:02]} h4 {[%emt 0:00:03]} 58. e6 {[%emt 0:00:02]} Re4+ {[%emt 0:00:01]} 59. Kf3 {[%emt 0:00:02]} Re1 {[%emt 0:00:04]} 60. e7 {[%emt 0:00:04]} Kb3 {[%emt 0:00:03]} 61. Kg4 {[%emt 0:00:06]} Kxa3 {[%emt 0:00:05]} 62. Kxg5 {[%emt 0:00:02]} h3 {[%emt 0:00:00]} 63. Rh8 {[%emt 0:00:06]} Rxe7 {[%emt 0:00:05]} 64. Rxh3+ {[%emt 0:00:01]} Kb4 {[%emt 0:00:01]} 65. Kf5 {[%emt 0:00:03]} b5 {[%emt 0:00:04]} 66. Rh4+ {[%emt 0:00:03]} Kc5 {[%emt 0:00:04]} 67. Rh8 {[%emt 0:00:08]} a5 {[%emt 0:00:06]} 68. Ra8 {[%emt 0:00:03]} a4 {[%emt 0:00:02]} 69. Kf4 {[%emt 0:00:03]} Kb4 {[%emt 0:00:03]} 70. Kf3 {[%emt 0:00:15]} Kb3 {[%emt 0:00:02]} 71. Ra6 {[%emt 0:00:06]} a3 {[%emt 0:00:12]} 72. Ra5 {[%emt 0:00:05]} Rb7 {[%emt 0:00:18]} 73. Ke3 {[%emt 0:00:03]} Kb2 {[%emt 0:00:01]} 0-1

[Event "RLP-ch Rapid 2024"]
[Site "Landau"]
[Date "2024.05.04"]
[Round "6.1"]
[White "Carow, Johannes"]
[Black "Sidletskyi, Ivan"]
[Result "1-0"]
[ECO "E32"]
[WhiteElo "2456"]
[BlackElo "2346"]
[Annotator "TA"]
[PlyCount "129"]
[EventDate "2024.05.03"]
[EventType "swiss"]
[EventCountry "GER"]
[SourceTitle "playchess.com"]
[Source "ChessBase"]
[SourceQuality "1"]
[TimeControl "900+5"]

{[%evp 30,129,0,0,0,-24,-10,-14,-17,-5,0,0,0,-8,0,-96,-91,-99,-95,-240,-88,-88,-93,-91,-87,-99,-97,-97,-88,-97,-56,-56,-63,-70,-8,-8,0,0,0,0,0,0,0,0,0,0,0,0,0,0,0,0,0,0,0,0,120,125,104,108,287,287,371,341,368,327,317,256,274,273,815,851,851,725,1082,914,1065,828,4067,2278,4702,1652,5830,5820,29978,29979,29979,29980,29980,29981,29981,29982,29982,29983,29984,29984,29985,29986,29986,29987,29987,29988]} 1. d4 {[%emt 0:00:03]} Nf6 {[%emt 0:00:01]} 2. c4 {[%emt 0:00:37]} e6 {[%emt 0:00:01]} 3. Nc3 {[%emt 0:00:01]} Bb4 {[%emt 0:00:02]} 4. Qc2 {[%emt 0:00:13]} d6 {[%emt 0:00:26]} 5. Nf3 {[%emt 0:01:12]} Nbd7 {[%emt 0:00:08]} 6. a3 {[%emt 0:00:17]} Bxc3+ {[%emt 0:00:04]} 7. Qxc3 {[%emt 0:00:02]} b6 {[%emt 0:00:07]} 8. g3 {[%emt 0:01:48]} Bb7 {[%emt 0:00:00]} 9. Bg2 {[%emt 0:01:01]} O-O {[%emt 0:00:02]} 10. O-O {[%emt 0:00:03]} c5 {[%emt 0:00:31]} 11. Rd1 {[%emt 0:00:29]} Rc8 {[%emt 0:01:15] has lost popularity (11...Qe7). E32: Nimzo-Indian: Classical (4 Qc2): 4...0-0.} 12. b3 {[%emt 0:00:48]} d5 {[%emt 0:02:17]} 13. cxd5 $146 {[%emt 0:00:58]} ({Predecessor:} 13. Ne5 Nxe5 14. dxe5 d4 15. Qd3 Bxg2 16. Kxg2 Nd7 17. f4 f6 18. exf6 Qxf6 19. e4 {1-0 Blahynka,M (2417)-Petrik,T (2474) CZE-chT 1516 2015 (1.3)}) 13... Bxd5 {[%emt 0:00:26]} 14. Qe3 {[%emt 0:02:07]} cxd4 {[%emt 0:02:50]} 15. Nxd4 {[%emt 0:00:10]} Bxg2 {[%emt 0:00:20]} 16. Kxg2 {[%emt 0:00:02]} Nd5 {[%emt 0:00:03]} 17. Qg5 {[%emt 0:01:51]} Nc3 {[%emt 0:00:37]} 18. Qxd8 {[%emt 0:03:16]} Rfxd8 {[%emt 0:00:04]} 19. Rd2 {[%emt 0:00:02]} Ne4 {[%emt 0:02:26]} 20. Rd1 {[%emt 0:00:17]} Nc3 {[%emt 0:02:11]} 21. Rd2 {[%emt 0:00:12]} Nc5 {[%emt 0:00:22]} 22. Bb2 {[%emt 0:00:03] [#]} (22. Rc2 $1 $11 {remains equal.} Nd1 23. Rc4 Rxd4 24. Rxd4 Nxb3 25. Rxd1 Nxa1 26. Rd7) 22... N5e4 $1 $17 {[%emt 0:00:24]} 23. Rd3 {[%emt 0:00:15]} Nxe2 $1 {[%emt 0:00:01]} 24. Re1 {[%emt 0:00:26]} (24. Rad1 $17 {keeps fighting.} Nc5 25. Re3 Nxd4 26. Rxd4) 24... Nxd4 $2 {[%emt 0:00:06]} (24... Nc5 $19 25. Rdd1 Nxd4 26. Bxd4 Nxb3) 25. Rxe4 $17 {[%emt 0:00:03] [#]} Nf5 $1 {[%emt 0:01:10]} 26. Rc4 {[%emt 0:00:08]} h5 {[%emt 0:00:10]} 27. Rxd8+ {[%emt 0:00:19]} Rxd8 {[%emt 0:00:01]} 28. Rc7 {[%emt 0:00:01]} Rd3 {[%emt 0:00:26]} 29. b4 {[%emt 0:00:02]} a5 {[%emt 0:00:21]} 30. bxa5 {[%emt 0:00:17]} bxa5 {[%emt 0:00:01]} 31. Bc3 {[%emt 0:00:03]} a4 {[%emt 0:00:26]} (31... Nd6 $15) 32. Bb4 $11 {[%emt 0:00:17]} Nd4 {[%emt 0:00:18]} 33. Ra7 {[%emt 0:00:11]} Nc2 {[%emt 0:00:06]} 34. Rxa4 {[%emt 0:00:07]} Kh7 {[%emt 0:00:04]} 35. Ra7 {[%emt 0:00:10]} Kg6 {[%emt 0:00:02]} 36. Bc5 {[%emt 0:00:03]} Ne1+ {[%emt 0:00:01]} 37. Kf1 {[%emt 0:00:02]} Nf3 {[%emt 0:00:03]} 38. Kg2 {[%emt 0:00:03]} Rb3 {[%emt 0:00:04]} 39. Be3 {[%emt 0:00:09]} Ne1+ {[%emt 0:00:02]} 40. Kf1 {[%emt 0:00:01]} Nc2 {[%emt 0:00:01]} 41. Bc5 $1 {[%emt 0:00:03]} Rb1+ {[%emt 0:00:06]} 42. Ke2 {[%emt 0:00:03]} Na1 {[%emt 0:00:12]} (42... Rb5 $11 {keeps the balance.} 43. Rc7 Ra5) 43. a4 $16 {[%emt 0:00:09]} Nb3 {[%emt 0:00:02]} 44. Be3 {[%emt 0:00:02]} Rb2+ $2 {[%emt 0:00:05]} (44... e5 $16) 45. Kd3 $18 {[%emt 0:00:05]} Ra2 {[%emt 0:00:05]} 46. Kc3 {[%emt 0:00:06]} Na1 {[%emt 0:00:11]} 47. a5 {[%emt 0:00:02]} Rc2+ {[%emt 0:00:09]} 48. Kd3 {[%emt 0:00:01]} Rc8 {[%emt 0:00:04]} 49. Rb7 {[%emt 0:00:09]} Nc2 $2 {[%emt 0:00:08]} (49... Ra8 50. Rb5 Nb3 51. Rxb3 Rxa5) 50. a6 $18 {[%emt 0:00:02]} Nxe3 {[%emt 0:00:04]} 51. fxe3 {[%emt 0:00:06]} Rc6 {[%emt 0:00:01]} 52. a7 {[%emt 0:00:03]} Ra6 {[%emt 0:00:01]} 53. Kc4 {[%emt 0:00:02]} f5 {[%emt 0:00:11]} 54. Kb5 {[%emt 0:00:04]} Ra1 {[%emt 0:00:02]} 55. Kb6 {[%emt 0:00:01]} Kf6 {[%emt 0:00:04]} 56. Rb8 {[%emt 0:00:03]} g5 {[%emt 0:00:12]} 57. a8=Q {[%emt 0:00:03]} ({And not} 57. a8=B Ra2 $11) 57... Rxa8 {[%emt 0:00:02]} 58. Rxa8 {[%emt 0:00:02]} Ke5 {[%emt 0:00:01]} 59. Ra4 {[%emt 0:00:04]} Kd5 {[%emt 0:00:03]} 60. Rd4+ {[%emt 0:00:03]} Ke5 {[%emt 0:00:02]} 61. Kc6 {[%emt 0:00:01]} h4 {[%emt 0:00:05]} 62. Kc5 {[%emt 0:00:06]} hxg3 {[%emt 0:00:08]} 63. hxg3 {[%emt 0:00:01]} f4 {[%emt 0:00:03]} 64. gxf4+ {[%emt 0:00:05]} gxf4 {[%emt 0:00:01]} 65. exf4+ {[%emt 0:00:01]} 1-0

[Event "RLP-ch Rapid 2024"]
[Site "Landau"]
[Date "2024.05.04"]
[Round "6.2"]
[White "Barzen, Pascal"]
[Black "Boder, Jan"]
[Result "1/2-1/2"]
[ECO "C42"]
[WhiteElo "2291"]
[BlackElo "2318"]
[Annotator "TA"]
[PlyCount "49"]
[EventDate "2024.05.03"]
[EventType "swiss"]
[EventCountry "GER"]
[SourceTitle "playchess.com"]
[Source "ChessBase"]
[SourceQuality "1"]
[TimeControl "900+5"]

{[%evp 20,49,47,45,35,24,12,16,23,-6,-16,-24,-24,-104,-112,-95,-86,-122,-38,-134,0,-11,-7,-14,0,0,0,0,0,0,0,0]} 1. e4 {[%emt 0:00:01]} e5 {[%emt 0:00:01]} 2. Nf3 {[%emt 0:00:01]} Nf6 {[%emt 0:00:13]} 3. Nxe5 {[%emt 0:00:16]} d6 {[%emt 0:00:01]} 4. Nf3 {[%emt 0:00:01]} Nxe4 {[%emt 0:00:01]} 5. d4 {[%emt 0:00:03]} d5 {[%emt 0:00:01]} 6. Bd3 {[%emt 0:00:01]} Bd6 {[%emt 0:00:01]} 7. O-O {[%emt 0:00:03]} O-O {[%emt 0:15:22]} 8. c4 {[%emt 0:00:01]} c6 {[%emt 0:00:00]} 9. Qc2 {[%emt 0:00:02]} Na6 {[%emt 0:00:00]} 10. a3 {[%emt 0:00:03]} Re8 {[%emt 0:00:00]} 11. Nc3 {[%emt 0:00:08][%cal Rc3e4]} Bg4 {[%emt 0:00:00] ...Bxf3 would now be deadly.} 12. Ne5 {[%emt 0:01:02]} (12. cxd5 Nxc3 13. Ng5 h6 (13... Nxd5 14. Bxa6 g6 15. Bxb7 $15) 14. dxc6 Qc7 (14... hxg5 15. cxb7 Rb8 16. bxc3 $15) (14... Ne2+ 15. Bxe2 Rxe2 16. Qh7+ Kf8 17. cxb7 $11) 15. bxc3 hxg5 (15... Bxh2+ 16. Kh1 $11)) (12. Nxe4 {with more complications.} dxe4 13. Bxe4 Bxf3 14. Bxf3 Qh4 15. g3) 12... Bxe5 {[%emt 0:00:00]} 13. dxe5 {[%emt 0:00:04] Strongly threatening f3.} Rxe5 {[%emt 0:00:00]} 14. Nxe4 {[%emt 0:00:27]} dxe4 {[%emt 0:00:00]} 15. Bxe4 {[%emt 0:00:03]} f5 $1 {[%emt 0:00:00]} 16. Bf3 {[%emt 0:05:11]} (16. h3 $11) 16... Bxf3 $17 {[%emt 0:00:00]} 17. gxf3 {[%emt 0:00:01] [#]} Qh4 $1 {[%emt 0:00:00]} 18. Kh1 {[%emt 0:00:53] [#]} Rae8 {[%emt 0:00:00]} (18... Qh3 $1 $17 {[%cal Rh3f1]} 19. Qd1 Nc5) 19. Bd2 {[%emt 0:02:18]} (19. Rg1 $1 $15) 19... Qh3 {[%emt 0:00:00]} (19... Nc5 $17 {And now ...Re2 would win.} 20. Qc3 R5e6) 20. Qc3 $1 $11 {[%emt 0:00:20] White is weak on the light squares. The position is equal.} Nc5 {[%emt 0:00:00] Hoping for ...Na4.} 21. Rg1 $1 {[%emt 0:00:27]} Na4 {[%emt 0:00:00]} 22. Qb3 {[%emt 0:00:02] Black must now prevent c5+.} (22. Rg3 Qxg3 23. hxg3 Nxc3 24. Bxc3 Re2 $19) 22... Nc5 {[%emt 0:00:00]} 23. Qc3 {[%emt 0:00:03]} Na4 {[%emt 0:00:00]} 24. Qb3 {[%emt 0:00:11][%csl LRa4,LRb7] Threatens to win with c5+.} ({Not} 24. Rg3 $2 Qxg3 25. hxg3 Nxc3 26. Bxc3 Re2 $19) 24... Nc5 {[%emt 0:00:00]} 25. Qc3 {[%emt 0:00:02] Weighted Error Value: White=0.20 (precise) /Black=0.28 (precise) .  Mistake:       	White=2     	Black=2      Inaccurate:     	White=1     	---        OK:         	White=3     	Black=3      Best:        	White=2     	Black=1      Strong:       	White=2     	Black=2} 1/2-1/2

[Event "RLP-ch Rapid 2024"]
[Site "Landau"]
[Date "2024.05.04"]
[Round "6.3"]
[White "Baerwinkel, Tobias"]
[Black "Frischmann, Rick"]
[Result "1-0"]
[ECO "D07"]
[WhiteElo "2289"]
[BlackElo "2355"]
[Annotator "TA"]
[PlyCount "55"]
[EventDate "2024.05.03"]
[EventType "swiss"]
[EventCountry "GER"]
[SourceTitle "playchess.com"]
[Source "ChessBase"]
[SourceQuality "1"]
[TimeControl "900+5"]

{[%evp 10,54,50,59,49,66,78,50,57,28,19,37,31,26,13,22,27,30,147,32,120,0,0,0,281,272,277,293,270,280,312,309,497,480,704,564,789,760,758,726,1643,1619,1909,1834,2478,1379,29999]} 1. d4 {[%emt 0:00:01]} d5 {[%emt 0:00:01]} 2. Nf3 {[%emt 0:00:01]} Nc6 {[%emt 0:00:01]} 3. e3 {[%emt 0:00:04]} Bg4 {[%emt 0:00:02]} 4. c4 {[%emt 0:00:06]} e5 {[%emt 0:00:01]} 5. Qb3 {[%emt 0:00:10]} Bxf3 {[%emt 0:00:06]} 6. gxf3 {[%emt 0:00:05]} dxc4 {[%emt 0:00:03]} 7. Bxc4 {[%emt 0:00:25]} Qd7 {[%emt 0:00:01]} 8. dxe5 {[%emt 0:01:15]} ({Don't play} 8. Qxb7 Rb8 9. Qa6 exd4 $15) 8... Na5 {[%emt 0:00:56] [#] White is slightly better.} 9. Bxf7+ {[%emt 0:00:21]} Qxf7 {[%emt 0:00:02]} 10. Qb5+ {[%emt 0:00:08]} c6 $1 {[%emt 0:00:03]} ({Don't go for} 10... Nc6 $2 11. Qxb7 Kd7 (11... Bb4+ $2 12. Bd2 $18) 12. Qxa8 $18) 11. Qxa5 {[%emt 0:00:02] Nd2 would now be deadly.} Qxf3 {[%emt 0:00:13]} 12. Rg1 {[%emt 0:00:20]} Nh6 {[%emt 0:01:48] Strongly threatening ...Ng4.} 13. Nd2 {[%emt 0:06:43]} Qf7 {[%emt 0:05:40]} (13... Qf5 $11 {keeps the balance.}) 14. Ne4 {[%emt 0:00:44]} (14. b3 $1 $16) 14... Qf5 {[%emt 0:01:12] [#]} ({Black should play} 14... Be7 $14) 15. Ng5 {[%emt 0:02:08] White is more active.} (15. Qa4 $1 $16) 15... Ng4 $1 $11 {[%emt 0:01:44]} 16. f4 $36 {[%emt 0:00:23][%cal Bf2f4,Bf4f5][%mdl 2080] Black must now prevent e4. White is pushing.} Be7 $2 {[%emt 0:00:43][%mdl 8192]} (16... h6 $11 {and Black stays safe.} 17. e4 Qd7) 17. e4 $18 {[%emt 0:00:13]} Qd7 {[%emt 0:00:29]} 18. Qd2 {[%emt 0:01:01] Repels Qd4. Threatens to win with Qxd7+.} Qc8 {[%emt 0:00:01] Hoping for ...Bxg5.} 19. Qe2 {[%emt 0:00:09]} h5 {[%emt 0:00:29]} 20. f5 {[%emt 0:00:46]} Qd8 $2 {[%emt 0:02:24] [#]} (20... Qd7 21. Ne6 Bh4+ 22. Kf1 Nxh2+ 23. Kg2 (23. Qxh2 Qd3+ 24. Kg2 Qxe4+ 25. Kh3 Qxf5+ 26. Kxh4 Qxe6 $18) 23... Ng4) 21. Ne6 $1 {[%emt 0:00:17][%csl LRd8,LRg7]} Qa5+ {[%emt 0:00:01]} (21... Qb6 $142) 22. Kf1 {[%emt 0:00:21]} Kf7 {[%emt 0:00:45]} 23. h3 {[%emt 0:00:17]} Qxe5 {[%emt 0:00:09]} 24. Bf4 {[%emt 0:00:12]} Qf6 {[%emt 0:00:04]} 25. hxg4 {[%emt 0:00:07]} hxg4 {[%emt 0:00:01]} 26. Qxg4 {[%emt 0:00:04][%cal Oe4e5] Intending e5! and mate.} Rag8 {[%emt 0:00:06]} 27. e5 {[%emt 0:00:11]} Qh4 {[%emt 0:00:04]} 28. Qg6# {[%emt 0:00:02] Weighted Error Value: White=0.32/Black=0.78.  Loses game:     	---       	Black=1      Mistake:       	White=2     	Black=4      Inaccurate:     	White=1     	Black=1      OK:         	White=9     	Black=4      Best:        	White=1     	Black=1      Strong:       	White=1     	Black=2} 1-0